[Event "*** Titled Tuesday Blitz"]
[Site "Chess.com"]
[Date "2019.01.01"]
[Round "3"]
[White "RajdeepS"]
[Black "Alopekos"]
[Result "1-0"]
[WhiteElo "2516"]
[BlackElo "2473"]
[TimeControl "180+2"]
[EndTime "13:35:20 PST"]
[Termination "RajdeepS won by resignation"]

1. Nf3 {[%clk 0:03:01.9]} 1... Nf6 {[%clk 0:02:59.7]} 2. d4 {[%clk 0:03:03]}
2... e6 {[%clk 0:03:00.5]} 3. g3 {[%clk 0:03:04.4]} 3... d5 {[%clk 0:03:01.7]}
4. Bg2 {[%clk 0:03:03.5]} 4... Be7 {[%clk 0:03:03.4]} 5. O-O {[%clk 0:03:04.5]}
5... O-O {[%clk 0:03:05.1]} 6. c4 {[%clk 0:03:04.5]} 6... dxc4 {[%clk 0:03:07]}
7. Qc2 {[%clk 0:02:58.2]} 7... b5 {[%clk 0:03:08.3]} 8. a4 {[%clk 0:02:57.3]}
8... b4 {[%clk 0:03:08.2]} 9. Qxc4 {[%clk 0:02:55.5]} 9... Ba6 {[%clk
0:03:07.9]} 10. Qc2 {[%clk 0:02:56.2]} 10... Nbd7 {[%clk 0:03:09]} 11. Ne5
{[%clk 0:02:49.8]} 11... Nxe5 {[%clk 0:03:09.1]} 12. Bxa8 {[%clk 0:02:45.8]}
12... Qxd4 {[%clk 0:03:06.6]} 13. Bg2 {[%clk 0:02:43.2]} 13... c5 {[%clk
0:03:06.6]} 14. Be3 {[%clk 0:02:42.3]} 14... Qc4 {[%clk 0:03:06.4]} 15. Rc1
{[%clk 0:02:39.2]} 15... Qxe2 {[%clk 0:02:18.7]} 16. Qxe2 {[%clk 0:02:27]} 16...
Bxe2 {[%clk 0:02:20.6]} 17. Bxc5 {[%clk 0:02:24.8]} 17... Nd3 {[%clk 0:01:37.8]}
18. Bxe7 {[%clk 0:02:24.6]} 18... Nxc1 {[%clk 0:01:38.4]} 19. Bxf8 {[%clk
0:02:25.6]} 19... Nb3 {[%clk 0:01:39.9]} 20. Bxb4 {[%clk 0:02:24.6]} 20... Nxa1
{[%clk 0:01:38.1]} 21. Nd2 {[%clk 0:02:23]} 21... Nd5 {[%clk 0:01:33.4]} 22. Bc5
{[%clk 0:02:11.1]} 22... a5 {[%clk 0:00:54.9]} 23. Bf1 {[%clk 0:01:57.5]} 23...
Bd1 {[%clk 0:00:53.3]} 24. Bb5 {[%clk 0:01:55]} 24... Nb3 {[%clk 0:00:50.4]} 25.
Nxb3 {[%clk 0:01:44.4]} 25... Bxb3 {[%clk 0:00:52.3]} 26. Kf1 {[%clk 0:01:41]}
26... e5 {[%clk 0:00:32.5]} 27. Ke2 {[%clk 0:01:38]} 27... e4 {[%clk 0:00:33.3]}
28. Kd2 {[%clk 0:01:35.4]} 28... f5 {[%clk 0:00:30.5]} 29. Bd4 {[%clk
0:01:31.7]} 29... Kf7 {[%clk 0:00:27.9]} 30. Bc3 {[%clk 0:01:25.6]} 30... Nxc3
{[%clk 0:00:25.2]} 31. Kxc3 {[%clk 0:01:26.6]} 31... Ke6 {[%clk 0:00:16.9]} 32.
Kxb3 {[%clk 0:01:26.7]} 1-0

[Event "*** Titled Tuesday Blitz"]
[Site "Chess.com"]
[Date "2019.01.01"]
[Round "3"]
[White "Nathan_Filgueiras"]
[Black "catalin009"]
[Result "1-0"]
[WhiteElo "2340"]
[BlackElo "2415"]
[TimeControl "180+2"]
[EndTime "13:35:22 PST"]
[Termination "Nathan_Filgueiras won on time"]

1. e4 {[%clk 0:03:01.9]} 1... e5 {[%clk 0:03:00.6]} 2. Nf3 {[%clk 0:03:02.9]}
2... Nc6 {[%clk 0:03:00.9]} 3. Bc4 {[%clk 0:03:04.2]} 3... Bc5 {[%clk
0:03:00.1]} 4. O-O {[%clk 0:03:04.9]} 4... Nf6 {[%clk 0:03:00.8]} 5. d3 {[%clk
0:03:05.5]} 5... a6 {[%clk 0:03:00.2]} 6. Bb3 {[%clk 0:02:59.4]} 6... Ba7 {[%clk
0:02:51.1]} 7. Re1 {[%clk 0:02:58.5]} 7... h6 {[%clk 0:02:47.4]} 8. Nbd2 {[%clk
0:02:56.2]} 8... d6 {[%clk 0:02:47.9]} 9. c3 {[%clk 0:02:56.7]} 9... Be6 {[%clk
0:02:47]} 10. Bc2 {[%clk 0:02:56.5]} 10... Qd7 {[%clk 0:02:46.7]} 11. Nf1 {[%clk
0:02:57.2]} 11... O-O-O {[%clk 0:02:44.8]} 12. b4 {[%clk 0:02:55.5]} 12... g5
{[%clk 0:02:43]} 13. a4 {[%clk 0:02:54.9]} 13... g4 {[%clk 0:02:37.8]} 14. N3d2
{[%clk 0:02:55.6]} 14... d5 {[%clk 0:02:12]} 15. b5 {[%clk 0:02:40.5]} 15... Nb8
{[%clk 0:02:11.8]} 16. exd5 {[%clk 0:02:14.7]} 16... Nxd5 {[%clk 0:02:11.1]} 17.
Nc4 {[%clk 0:02:10.6]} 17... Nxc3 {[%clk 0:02:05]} 18. Qd2 {[%clk 0:02:08.6]}
18... Bxc4 {[%clk 0:01:43.4]} 19. dxc4 {[%clk 0:01:57.5]} 19... Qd4 {[%clk
0:01:19.7]} 20. Bf5+ {[%clk 0:01:41.6]} 20... Nd7 {[%clk 0:01:19.3]} 21. Bb2
{[%clk 0:01:31.4]} 21... Kb8 {[%clk 0:00:17.7]} 22. Bxc3 {[%clk 0:01:27.8]}
22... Qxc4 {[%clk 0:00:13.5]} 23. Bxd7 {[%clk 0:01:24.3]} 23... f6 {[%clk
0:00:05.4]} 24. Rad1 {[%clk 0:01:21.8]} 24... Qf7 {[%clk 0:00:03.2]} 25. Qd5
{[%clk 0:01:16.7]} 25... Qe7 {[%clk 0:00:02.5]} 26. Ne3 {[%clk 0:01:08.6]} 1-0

[Event "*** Titled Tuesday Blitz"]
[Site "Chess.com"]
[Date "2019.01.01"]
[Round "3"]
[White "LawrenceTrent"]
[Black "Anahita_Gholami"]
[Result "1-0"]
[WhiteElo "2523"]
[BlackElo "2695"]
[TimeControl "180+2"]
[EndTime "13:35:28 PST"]
[Termination "LawrenceTrent won by resignation"]

1. d4 {[%clk 0:03:01.9]} 1... Nf6 {[%clk 0:03:00.9]} 2. Bg5 {[%clk 0:03:03]}
2... Ne4 {[%clk 0:02:59.2]} 3. Bf4 {[%clk 0:03:04.1]} 3... c5 {[%clk 0:03:00.4]}
4. f3 {[%clk 0:03:05.3]} 4... Nf6 {[%clk 0:02:59.7]} 5. dxc5 {[%clk 0:03:05.3]}
5... Qa5+ {[%clk 0:02:57.9]} 6. Nc3 {[%clk 0:03:06]} 6... Qxc5 {[%clk
0:02:58.5]} 7. e4 {[%clk 0:03:07.3]} 7... g6 {[%clk 0:02:45.1]} 8. Qd2 {[%clk
0:03:05.9]} 8... Bg7 {[%clk 0:02:45.5]} 9. O-O-O {[%clk 0:03:00.9]} 9... O-O
{[%clk 0:02:45.2]} 10. h4 {[%clk 0:02:55.5]} 10... d6 {[%clk 0:02:45.2]} 11. g4
{[%clk 0:02:52.9]} 11... b5 {[%clk 0:02:43.2]} 12. Be3 {[%clk 0:02:51.4]} 12...
Qc6 {[%clk 0:02:35.1]} 13. Bxb5 {[%clk 0:02:48.4]} 13... Qb7 {[%clk 0:02:36.3]}
14. Bc4 {[%clk 0:02:45.4]} 14... Nc6 {[%clk 0:02:36.1]} 15. h5 {[%clk
0:02:41.2]} 15... Rb8 {[%clk 0:02:36.2]} 16. Bb3 {[%clk 0:02:41.4]} 16... Ne5
{[%clk 0:02:35.9]} 17. hxg6 {[%clk 0:02:41]} 17... hxg6 {[%clk 0:02:37.8]} 18.
Bh6 {[%clk 0:02:41.9]} 18... Nc4 {[%clk 0:02:16.5]} 19. Qh2 {[%clk 0:02:37.4]}
19... Nh5 {[%clk 0:00:51.9]} 20. Bxg7 {[%clk 0:02:35.2]} 20... Kxg7 {[%clk
0:00:53.8]} 21. gxh5 {[%clk 0:02:34.1]} 21... Rh8 {[%clk 0:00:55.3]} 22. h6+
{[%clk 0:02:31.1]} 22... Kf8 {[%clk 0:00:56.6]} 23. Qf4 {[%clk 0:02:26.2]} 23...
Be6 {[%clk 0:00:55.6]} 24. Nge2 {[%clk 0:02:27]} 24... Ne5 {[%clk 0:00:46.2]}
25. Bxe6 {[%clk 0:02:15.5]} 25... Qxb2+ {[%clk 0:00:47.3]} 26. Kd2 {[%clk
0:02:17.1]} 26... g5 {[%clk 0:00:48.1]} 27. Qf5 {[%clk 0:02:12.7]} 27... Qa3
{[%clk 0:00:22.6]} 28. Bb3 {[%clk 0:02:05]} 28... Qc5 {[%clk 0:00:19.1]} 29.
Rdf1 {[%clk 0:01:44.2]} 29... a5 {[%clk 0:00:17.9]} 30. f4 {[%clk 0:01:39]}
30... gxf4 {[%clk 0:00:11.6]} 31. Nxf4 {[%clk 0:01:38.7]} 31... Ke8 {[%clk
0:00:13.2]} 32. Nd3 {[%clk 0:01:34.6]} 32... Nxd3 {[%clk 0:00:13.1]} 33. cxd3
{[%clk 0:01:34.4]} 33... Qb4 {[%clk 0:00:12.1]} 34. Ba4+ {[%clk 0:01:30.8]} 1-0

[Event "*** Titled Tuesday Blitz"]
[Site "Chess.com"]
[Date "2019.01.01"]
[Round "3"]
[White "Zenzo"]
[Black "Alexander_Donchenko"]
[Result "0-1"]
[WhiteElo "2530"]
[BlackElo "2651"]
[TimeControl "180+2"]
[EndTime "13:35:36 PST"]
[Termination "Alexander_Donchenko won by resignation"]

1. e4 {[%clk 0:02:57]} 1... e5 {[%clk 0:03:00.8]} 2. Nf3 {[%clk 0:02:58]} 2...
Nf6 {[%clk 0:03:01.8]} 3. Nxe5 {[%clk 0:02:57.8]} 3... d6 {[%clk 0:03:03.2]} 4.
Nf3 {[%clk 0:02:58.4]} 4... Nxe4 {[%clk 0:03:04.6]} 5. Nc3 {[%clk 0:02:59.6]}
5... Nxc3 {[%clk 0:03:05.8]} 6. dxc3 {[%clk 0:03:00.4]} 6... Be6 {[%clk
0:03:06.8]} 7. Be3 {[%clk 0:02:56.9]} 7... Nc6 {[%clk 0:03:07.3]} 8. Qd2 {[%clk
0:02:57.3]} 8... Qd7 {[%clk 0:03:08.1]} 9. O-O-O {[%clk 0:02:54.6]} 9... O-O-O
{[%clk 0:03:09]} 10. Kb1 {[%clk 0:02:54.4]} 10... a6 {[%clk 0:03:09.1]} 11. g3
{[%clk 0:02:45]} 11... Bg4 {[%clk 0:03:04.1]} 12. Bg2 {[%clk 0:02:42.4]} 12...
Ne5 {[%clk 0:03:03.3]} 13. Nxe5 {[%clk 0:02:40.8]} 13... dxe5 {[%clk 0:03:05.2]}
14. Qxd7+ {[%clk 0:02:40.5]} 14... Rxd7 {[%clk 0:03:04.3]} 15. Rxd7 {[%clk
0:02:40.9]} 15... Bxd7 {[%clk 0:03:04.7]} 16. Rd1 {[%clk 0:02:39.3]} 16... Bd6
{[%clk 0:03:05.6]} 17. c4 {[%clk 0:02:38.3]} 17... Rd8 {[%clk 0:03:03.2]} 18. c5
{[%clk 0:02:32.9]} 18... Be7 {[%clk 0:03:04.1]} 19. Kc1 {[%clk 0:02:27.4]} 19...
c6 {[%clk 0:02:59.3]} 20. b4 {[%clk 0:02:18]} 20... Rf8 {[%clk 0:02:53.8]} 21.
f4 {[%clk 0:02:13.1]} 21... Bg4 {[%clk 0:02:51.9]} 22. Rd2 {[%clk 0:02:09.2]}
22... Bf6 {[%clk 0:02:50.1]} 23. a3 {[%clk 0:02:01.7]} 23... Re8 {[%clk
0:02:47.5]} 24. Rf2 {[%clk 0:01:00.2]} 24... exf4 {[%clk 0:02:40.2]} 25. Rxf4
{[%clk 0:00:54.1]} 25... Rxe3 {[%clk 0:02:34.5]} 26. Rxg4 {[%clk 0:00:55.2]}
26... Rxa3 {[%clk 0:02:34.2]} 27. Re4 {[%clk 0:00:50.2]} 27... Kc7 {[%clk
0:02:26.3]} 28. Bh3 {[%clk 0:00:47]} 28... Bc3 {[%clk 0:02:22.1]} 29. Kd1 {[%clk
0:00:41.7]} 29... Ra1+ {[%clk 0:02:23]} 30. Ke2 {[%clk 0:00:42.9]} 30... Re1+
{[%clk 0:02:24.5]} 31. Kd3 {[%clk 0:00:43.7]} 31... Rxe4 {[%clk 0:02:25.5]} 32.
Kxe4 {[%clk 0:00:44.6]} 32... Bxb4 {[%clk 0:02:27.1]} 33. Kd4 {[%clk 0:00:45.4]}
33... g6 {[%clk 0:02:25.8]} 34. g4 {[%clk 0:00:43.7]} 34... a5 {[%clk
0:02:22.8]} 35. Kc4 {[%clk 0:00:38.2]} 35... Bd2 {[%clk 0:02:20.8]} 36. Bg2
{[%clk 0:00:38.4]} 36... a4 {[%clk 0:02:18]} 37. c3 {[%clk 0:00:35.4]} 37... a3
{[%clk 0:02:13.1]} 38. Kb3 {[%clk 0:00:37.3]} 38... Bc1 {[%clk 0:02:13.4]} 39.
Bf1 {[%clk 0:00:38.1]} 39... Kd7 {[%clk 0:02:12.9]} 40. Bc4 {[%clk 0:00:39.3]}
40... Ke7 {[%clk 0:02:12.8]} 41. h3 {[%clk 0:00:40.8]} 41... f5 {[%clk
0:02:12.5]} 42. Bg8 {[%clk 0:00:39.3]} 42... f4 {[%clk 0:02:08.7]} 43. Bxh7
{[%clk 0:00:32.9]} 43... Kf7 {[%clk 0:02:08.9]} 44. h4 {[%clk 0:00:30.7]} 44...
Kg7 {[%clk 0:02:09.4]} 0-1

[Event "*** Titled Tuesday Blitz"]
[Site "Chess.com"]
[Date "2019.01.01"]
[Round "3"]
[White "KenanGarayev"]
[Black "Kirill_Klukin"]
[Result "1-0"]
[WhiteElo "2844"]
[BlackElo "2598"]
[TimeControl "180+2"]
[EndTime "13:35:53 PST"]
[Termination "KenanGarayev won by resignation"]

1. d4 {[%clk 0:03:01.9]} 1... Nf6 {[%clk 0:02:59.6]} 2. c4 {[%clk 0:02:59.3]}
2... g6 {[%clk 0:03:00.1]} 3. Nc3 {[%clk 0:03:00.4]} 3... Bg7 {[%clk 0:03:01.4]}
4. e4 {[%clk 0:02:59.3]} 4... d6 {[%clk 0:03:02.7]} 5. f4 {[%clk 0:02:59.5]}
5... O-O {[%clk 0:03:01.3]} 6. Nf3 {[%clk 0:02:58.9]} 6... c5 {[%clk 0:03:02.5]}
7. d5 {[%clk 0:02:58.5]} 7... e6 {[%clk 0:03:03.2]} 8. Be2 {[%clk 0:02:59.4]}
8... exd5 {[%clk 0:03:04.1]} 9. cxd5 {[%clk 0:03:01.3]} 9... Re8 {[%clk
0:02:59.9]} 10. e5 {[%clk 0:03:01]} 10... Ng4 {[%clk 0:02:47.1]} 11. h3 {[%clk
0:02:54.5]} 11... Nh6 {[%clk 0:02:46.7]} 12. O-O {[%clk 0:02:55.1]} 12... a6
{[%clk 0:02:45.4]} 13. Bd3 {[%clk 0:02:41.3]} 13... Nd7 {[%clk 0:02:32.3]} 14.
Ne4 {[%clk 0:02:41.1]} 14... dxe5 {[%clk 0:02:21.4]} 15. Nd6 {[%clk 0:02:35.2]}
15... Rf8 {[%clk 0:02:10.8]} 16. Re1 {[%clk 0:02:25.7]} 16... c4 {[%clk
0:02:01.4]} 17. Nxc4 {[%clk 0:02:24]} 17... exf4 {[%clk 0:01:48.7]} 18. Bxf4
{[%clk 0:02:22.6]} 18... Nc5 {[%clk 0:01:49.8]} 19. Bf1 {[%clk 0:02:16.6]} 19...
Nf5 {[%clk 0:01:45.5]} 20. Rc1 {[%clk 0:02:14]} 20... Bd7 {[%clk 0:01:35.6]} 21.
Qd2 {[%clk 0:02:08.3]} 21... b5 {[%clk 0:01:12.4]} 22. Nce5 {[%clk 0:02:05]}
22... Rc8 {[%clk 0:01:11]} 23. g4 {[%clk 0:01:54.5]} 23... Nd6 {[%clk
0:00:49.6]} 24. Qb4 {[%clk 0:01:45.8]} 24... Ndb7 {[%clk 0:00:33.6]} 25. Nd4
{[%clk 0:01:38.2]} 25... Qf6 {[%clk 0:00:32.3]} 26. Ndc6 {[%clk 0:01:34.1]}
26... Rfe8 {[%clk 0:00:27.3]} 27. Nxd7 {[%clk 0:01:30.4]} 27... Qxb2 {[%clk
0:00:19.3]} 28. Qxb2 {[%clk 0:01:22.8]} 28... Bxb2 {[%clk 0:00:19.6]} 29. Rxe8+
{[%clk 0:01:22]} 29... Rxe8 {[%clk 0:00:20.3]} 30. Rxc5 {[%clk 0:01:23.9]} 30...
Nxc5 {[%clk 0:00:20.1]} 31. Nxc5 {[%clk 0:01:25.8]} 31... Re1 {[%clk 0:00:16.3]}
32. d6 {[%clk 0:01:17]} 32... Rd1 {[%clk 0:00:17.2]} 33. d7 {[%clk 0:01:15]}
33... Bf6 {[%clk 0:00:18.6]} 34. Ne4 {[%clk 0:01:12.3]} 1-0

[Event "*** Titled Tuesday Blitz"]
[Site "Chess.com"]
[Date "2019.01.01"]
[Round "3"]
[White "michaelq2d5"]
[Black "Rakhmanov_Aleksandr"]
[Result "0-1"]
[WhiteElo "2754"]
[BlackElo "2803"]
[TimeControl "180+2"]
[EndTime "13:35:55 PST"]
[Termination "Rakhmanov_Aleksandr won by resignation"]

1. d4 {[%clk 0:03:01.9]} 1... Nf6 {[%clk 0:02:58.8]} 2. c4 {[%clk 0:03:03]} 2...
d6 {[%clk 0:03:00.1]} 3. Nf3 {[%clk 0:03:03.8]} 3... g6 {[%clk 0:03:00.9]} 4.
Nc3 {[%clk 0:03:05.1]} 4... Bf5 {[%clk 0:03:02.4]} 5. h3 {[%clk 0:03:05.5]} 5...
Bg7 {[%clk 0:03:02.6]} 6. g4 {[%clk 0:03:06.8]} 6... Bd7 {[%clk 0:03:03.8]} 7.
e4 {[%clk 0:03:08]} 7... O-O {[%clk 0:03:02.1]} 8. Be3 {[%clk 0:03:08.3]} 8...
Nc6 {[%clk 0:02:58.6]} 9. Bg2 {[%clk 0:03:03.1]} 9... e5 {[%clk 0:02:51.5]} 10.
d5 {[%clk 0:03:04]} 10... Ne7 {[%clk 0:02:52.3]} 11. g5 {[%clk 0:02:54.3]} 11...
Nh5 {[%clk 0:02:52.2]} 12. c5 {[%clk 0:02:52.6]} 12... Nf4 {[%clk 0:02:52.3]}
13. Bxf4 {[%clk 0:02:49.9]} 13... exf4 {[%clk 0:02:52.3]} 14. cxd6 {[%clk
0:02:51.6]} 14... cxd6 {[%clk 0:02:52.9]} 15. Qd2 {[%clk 0:02:53.3]} 15... f5
{[%clk 0:02:43.7]} 16. gxf6 {[%clk 0:02:51.9]} 16... Bxf6 {[%clk 0:02:42.8]} 17.
O-O {[%clk 0:02:41.4]} 17... g5 {[%clk 0:02:35.9]} 18. Nh2 {[%clk 0:02:40.5]}
18... Ng6 {[%clk 0:02:35.3]} 19. Ng4 {[%clk 0:02:32.2]} 19... Bg7 {[%clk
0:02:36.1]} 20. Qe2 {[%clk 0:02:28.1]} 20... f3 {[%clk 0:02:12]} 21. Bxf3 {[%clk
0:02:28.2]} 21... Nf4 {[%clk 0:02:11.5]} 22. Qe3 {[%clk 0:02:29.1]} 22... h5
{[%clk 0:02:09.1]} 23. Nh2 {[%clk 0:02:28.2]} 23... Nxh3+ {[%clk 0:02:06.1]} 24.
Kh1 {[%clk 0:02:29.5]} 24... g4 {[%clk 0:01:56.3]} 25. Bg2 {[%clk 0:02:28.9]}
25... Nf4 {[%clk 0:01:53]} 26. Rfe1 {[%clk 0:01:53.6]} 26... Be5 {[%clk
0:01:41.9]} 27. Kg1 {[%clk 0:01:50.7]} 27... Qh4 {[%clk 0:01:38.4]} 28. Nf1
{[%clk 0:01:51.9]} 28... Nxg2 {[%clk 0:01:30.1]} 29. Kxg2 {[%clk 0:01:53.1]}
29... Rf3 {[%clk 0:01:29.5]} 30. Qd2 {[%clk 0:01:53.8]} 30... Raf8 {[%clk
0:01:26.2]} 31. Re2 {[%clk 0:01:52.6]} 31... Rh3 {[%clk 0:01:11.4]} 32. Re3
{[%clk 0:01:41.5]} 32... Rff3 {[%clk 0:00:58.9]} 33. Nd1 {[%clk 0:01:32.8]}
33... Rh1 {[%clk 0:00:25]} 34. Rxf3 {[%clk 0:01:33.9]} 34... gxf3+ {[%clk
0:00:26]} 35. Kxf3 {[%clk 0:01:35.8]} 35... Qg4+ {[%clk 0:00:20.5]} 36. Ke3
{[%clk 0:01:36.8]} 36... Bf4+ {[%clk 0:00:18.6]} 37. Kd3 {[%clk 0:01:37.3]}
37... Bb5+ {[%clk 0:00:18.5]} 38. Kc2 {[%clk 0:01:36.7]} 38... Bxd2 {[%clk
0:00:19.3]} 39. Nxd2 {[%clk 0:01:38.6]} 39... Qe2 {[%clk 0:00:19.2]} 40. a4
{[%clk 0:01:36]} 40... Bd3+ {[%clk 0:00:19.7]} 41. Kc3 {[%clk 0:01:36.1]} 41...
Rxd1 {[%clk 0:00:19.8]} 42. Rxd1 {[%clk 0:01:37.7]} 42... Qxd1 {[%clk
0:00:21.5]} 43. Kxd3 {[%clk 0:01:39.6]} 43... h4 {[%clk 0:00:22.3]} 44. Ke3
{[%clk 0:01:40.3]} 44... h3 {[%clk 0:00:23.3]} 45. Nf3 {[%clk 0:01:41.9]} 45...
Qxa4 {[%clk 0:00:23.4]} 46. Kf4 {[%clk 0:01:42.6]} 46... Qb4 {[%clk 0:00:24]}
47. b3 {[%clk 0:01:43.5]} 47... Qxb3 {[%clk 0:00:25.2]} 48. Kg4 {[%clk
0:01:45.4]} 48... Qc3 {[%clk 0:00:26.2]} 49. Nh2 {[%clk 0:01:45.1]} 49... a5
{[%clk 0:00:27.3]} 50. f3 {[%clk 0:01:46.1]} 50... a4 {[%clk 0:00:29.2]} 51.
Kxh3 {[%clk 0:01:47.5]} 51... a3 {[%clk 0:00:31.1]} 52. Ng4 {[%clk 0:01:49.2]}
52... a2 {[%clk 0:00:33]} 53. Nh6+ {[%clk 0:01:51.1]} 0-1

[Event "*** Titled Tuesday Blitz"]
[Site "Chess.com"]
[Date "2019.01.01"]
[Round "3"]
[White "Paralinch"]
[Black "Blackmind96"]
[Result "1-0"]
[WhiteElo "2909"]
[BlackElo "2624"]
[TimeControl "180+2"]
[EndTime "13:35:58 PST"]
[Termination "Paralinch won by resignation"]

1. e4 {[%clk 0:03:01.9]} 1... e6 {[%clk 0:03:00.6]} 2. d4 {[%clk 0:03:02.1]}
2... d5 {[%clk 0:02:59.5]} 3. exd5 {[%clk 0:03:04]} 3... exd5 {[%clk 0:03:00.2]}
4. Nf3 {[%clk 0:03:05.7]} 4... Nf6 {[%clk 0:03:01]} 5. Bd3 {[%clk 0:03:06.4]}
5... Bd6 {[%clk 0:03:02]} 6. Qe2+ {[%clk 0:03:07.4]} 6... Qe7 {[%clk 0:03:01.4]}
7. Qxe7+ {[%clk 0:03:08.2]} 7... Kxe7 {[%clk 0:03:02.7]} 8. O-O {[%clk
0:03:08.6]} 8... Re8 {[%clk 0:03:04.2]} 9. Nc3 {[%clk 0:03:08.8]} 9... c6 {[%clk
0:03:05.1]} 10. Bg5 {[%clk 0:03:09.6]} 10... Nd7 {[%clk 0:03:04.6]} 11. Rae1+
{[%clk 0:03:04.5]} 11... Kf8 {[%clk 0:03:04.9]} 12. Rxe8+ {[%clk 0:03:04.4]}
12... Nxe8 {[%clk 0:03:04.3]} 13. Re1 {[%clk 0:03:04.4]} 13... h6 {[%clk
0:02:55.3]} 14. Bd2 {[%clk 0:02:58.2]} 14... b5 {[%clk 0:02:52.5]} 15. Ne5
{[%clk 0:02:57]} 15... Nxe5 {[%clk 0:02:51]} 16. dxe5 {[%clk 0:02:58.9]} 16...
Bc5 {[%clk 0:02:49.7]} 17. Ne2 {[%clk 0:02:49.9]} 17... Nc7 {[%clk 0:02:34.7]}
18. Kf1 {[%clk 0:02:40.8]} 18... Ne6 {[%clk 0:02:25.3]} 19. f4 {[%clk
0:02:41.2]} 19... Nd4 {[%clk 0:02:23.2]} 20. Be3 {[%clk 0:02:36.9]} 20... Ne6
{[%clk 0:02:22.6]} 21. Bxc5+ {[%clk 0:02:28.6]} 21... Nxc5 {[%clk 0:02:24.5]}
22. b4 {[%clk 0:02:21.1]} 22... Na4 {[%clk 0:02:18.3]} 23. Nd4 {[%clk
0:02:19.5]} 23... Bd7 {[%clk 0:02:19.2]} 24. f5 {[%clk 0:02:20.3]} 24... a5
{[%clk 0:02:17.2]} 25. e6 {[%clk 0:02:11.1]} 25... fxe6 {[%clk 0:02:04.5]} 26.
fxe6 {[%clk 0:02:13]} 26... Be8 {[%clk 0:02:06]} 27. e7+ {[%clk 0:02:05.8]}
27... Kf7 {[%clk 0:02:00]} 28. Re6 {[%clk 0:01:50.6]} 28... axb4 {[%clk
0:01:54.7]} 29. Bg6+ {[%clk 0:01:48.6]} 29... Kg8 {[%clk 0:01:55.7]} 30. Rd6
{[%clk 0:01:34.3]} 30... Bxg6 {[%clk 0:01:27]} 31. Rd8+ {[%clk 0:01:33.1]} 31...
Be8 {[%clk 0:01:28.5]} 32. Rxa8 {[%clk 0:01:30.7]} 32... Kf7 {[%clk 0:01:29.8]}
33. Nf5 {[%clk 0:01:29.5]} 33... Nb6 {[%clk 0:01:30.6]} 34. Rd8 {[%clk 0:01:12]}
34... Nc4 {[%clk 0:01:25.9]} 35. Nxg7 {[%clk 0:01:06.9]} 35... Kxg7 {[%clk
0:01:25.2]} 36. Rxe8 {[%clk 0:01:05]} 36... Kf7 {[%clk 0:01:26.6]} 37. Rc8
{[%clk 0:01:03.7]} 37... Kxe7 {[%clk 0:01:28]} 38. Rxc6 {[%clk 0:01:05.2]} 38...
Ne3+ {[%clk 0:01:24.1]} 39. Kf2 {[%clk 0:00:56.6]} 39... Nd1+ {[%clk 0:01:22]}
40. Kf3 {[%clk 0:00:56.4]} 40... Nc3 {[%clk 0:01:23.5]} 41. Rxh6 {[%clk
0:00:56]} 41... Nxa2 {[%clk 0:01:23.3]} 42. h4 {[%clk 0:00:56.4]} 42... Nc3
{[%clk 0:01:24.5]} 43. g4 {[%clk 0:00:55.3]} 43... d4 {[%clk 0:01:20.7]} 44.
Rh7+ {[%clk 0:00:48.8]} 44... Kf8 {[%clk 0:01:19.7]} 45. Rd7 {[%clk 0:00:47.3]}
1-0

[Event "*** Titled Tuesday Blitz"]
[Site "Chess.com"]
[Date "2019.01.01"]
[Round "3"]
[White "Morshynska"]
[Black "SimonKnightRivendell"]
[Result "0-1"]
[WhiteElo "2077"]
[BlackElo "2004"]
[TimeControl "180+2"]
[EndTime "13:35:59 PST"]
[Termination "SimonKnightRivendell won by resignation"]

1. d4 {[%clk 0:03:01.9]} 1... Nf6 {[%clk 0:02:58.9]} 2. c4 {[%clk 0:03:01.9]}
2... e6 {[%clk 0:02:59.7]} 3. Nf3 {[%clk 0:03:02.2]} 3... b6 {[%clk 0:02:59.4]}
4. g3 {[%clk 0:03:03.2]} 4... Bb7 {[%clk 0:03:00.4]} 5. Bg2 {[%clk 0:03:04.3]}
5... Be7 {[%clk 0:03:01.4]} 6. O-O {[%clk 0:03:04.9]} 6... O-O {[%clk
0:03:02.8]} 7. Nc3 {[%clk 0:03:03.3]} 7... d5 {[%clk 0:03:03.5]} 8. cxd5 {[%clk
0:03:02.6]} 8... exd5 {[%clk 0:03:04.4]} 9. Bf4 {[%clk 0:03:02.7]} 9... c6
{[%clk 0:03:03.9]} 10. Rc1 {[%clk 0:02:56.2]} 10... Nbd7 {[%clk 0:03:04.6]} 11.
Ne5 {[%clk 0:02:49.9]} 11... Nh5 {[%clk 0:02:56.6]} 12. Nxd7 {[%clk 0:02:40.1]}
12... Qxd7 {[%clk 0:02:49.1]} 13. Bd2 {[%clk 0:02:34.8]} 13... f5 {[%clk
0:02:46.6]} 14. e4 {[%clk 0:02:31]} 14... Nf6 {[%clk 0:02:46.7]} 15. e5 {[%clk
0:02:27.9]} 15... Ne4 {[%clk 0:02:46.9]} 16. Be3 {[%clk 0:02:14.5]} 16... Ba6
{[%clk 0:02:41.5]} 17. Re1 {[%clk 0:02:13.8]} 17... Nxc3 {[%clk 0:02:42.1]} 18.
bxc3 {[%clk 0:02:13.7]} 18... Bc4 {[%clk 0:02:41]} 19. Qc2 {[%clk 0:02:03.1]}
19... g6 {[%clk 0:02:25.4]} 20. Bf1 {[%clk 0:01:40.7]} 20... b5 {[%clk 0:02:18]}
21. f4 {[%clk 0:01:37.9]} 21... a5 {[%clk 0:02:13.6]} 22. Bxc4 {[%clk
0:01:28.4]} 22... dxc4 {[%clk 0:02:07.2]} 23. Qg2 {[%clk 0:01:24.6]} 23... Qd5
{[%clk 0:02:07.1]} 24. Qxd5+ {[%clk 0:01:23.1]} 24... cxd5 {[%clk 0:02:08.1]}
25. Rb1 {[%clk 0:01:14.8]} 25... b4 {[%clk 0:02:02.8]} 26. Bd2 {[%clk
0:01:13.6]} 26... Rab8 {[%clk 0:02:01.6]} 27. Rb2 {[%clk 0:00:50.7]} 27... Rb7
{[%clk 0:02:02.4]} 28. Reb1 {[%clk 0:00:49.8]} 28... Rfb8 {[%clk 0:02:03.3]} 29.
Kf2 {[%clk 0:00:41.2]} 29... Kf7 {[%clk 0:01:52.9]} 30. Ke3 {[%clk 0:00:40.5]}
30... Ke6 {[%clk 0:01:53.3]} 31. h3 {[%clk 0:00:41]} 31... b3 {[%clk 0:01:50.1]}
32. a4 {[%clk 0:00:26.8]} 32... Ba3 {[%clk 0:01:48.6]} 33. Be1 {[%clk
0:00:20.2]} 33... Bxb2 {[%clk 0:01:49]} 34. Rxb2 {[%clk 0:00:22.1]} 34... h6
{[%clk 0:01:46.4]} 35. h4 {[%clk 0:00:21.3]} 35... g5 {[%clk 0:01:45.7]} 36. Kf3
{[%clk 0:00:18.6]} 36... gxh4 {[%clk 0:01:45.9]} 37. gxh4 {[%clk 0:00:18.5]}
37... Rg7 {[%clk 0:01:46.9]} 38. Bf2 {[%clk 0:00:17]} 38... Rbg8 {[%clk
0:01:47.6]} 39. Rb1 {[%clk 0:00:17.4]} 39... Rg2 {[%clk 0:01:47.6]} 40. Rb2
{[%clk 0:00:16.2]} 40... Rh2 {[%clk 0:01:46.9]} 41. Rb1 {[%clk 0:00:16.2]} 41...
Rgg2 {[%clk 0:01:47.6]} 42. Be3 {[%clk 0:00:16.9]} 42... Ra2 {[%clk 0:01:43.4]}
43. Rg1 {[%clk 0:00:16]} 43... Rh3+ {[%clk 0:01:43.4]} 0-1